bitfinex/quotes_ETHUSD_20250217
["timestamp","ask_amount","ask_price","bid_price","bid_amount"]
[1739817079209,0.7563,2718.4,2717.4,0.04414978]
[1739817079408,8.27,2718.9,2717.9,3.67929]
[1739817079409,3.67846,2718.6,2717.9,3.67929]
[1739817079740,3.67797,2718.9,2718.2,3.67889]
[1739817080325,3.67776,2719.1,2718.3,3.72171881]
[1739817080533,3.67789,2719.0,2718.3,7.40040881]
[1739817080731,3.67789,2719.0,2718.3,3.72171881]
[1739817080732,3.67802,2718.9,2718.3,3.72171881]
[1739817080938,3.67811,2718.8,2718.3,3.72171881]
[1739817081141,3.67789,2719.0,2718.4,3.67858]
[1739817081337,3.67789,2719.0,2718.4,3.72148985]
[1739817081631,3.6778,2719.1,2718.5,0.7664]
[1739817081856,0.74156516,2719.4,2718.5,0.7664]
[1739817081993,4.46747,2719.6,2718.9,3.67793]
[1739817082197,0.7904,2719.6,2719.1,3.67759]
[1739817082509,0.7904,2719.6,2719.2,0.04200854]
[1739817082818,5.281852,2719.6,2719.0,3.67769]
[1739817083128,5.32782287,2719.6,2718.8,3.678]
[1739817083335,5.32782287,2719.6,2719.1,0.045368]
[1739817083336,5.281852,2719.6,2719.1,0.045368]
[1739817083533,1.604812,2719.6,2719.2,3.67753]
[1739817083734,3.0,2719.7,2719.2,0.04523997]
[1739817083932,3.6766,2719.9,2719.3,3.67739]
[1739817084134,0.7716,2720.0,2719.3,3.72250195]
[1739817084638,3.6766,2719.9,2719.3,3.72250195]
[1739817084813,3.6765,2720.0,2719.5,3.67706]
[1739817085018,3.6766,2719.9,2719.3,3.72250195]
[1739817085202,3.67647,2720.0,2719.6,0.0415331]
[1739817085399,9.0416,2720.3,2719.4,3.67724]
[1739817085599,3.67655,2720.0,2719.7,0.04141426]
[1739817085798,3.67655,2720.0,2719.2,4.5016]
[1739817085799,9.0416,2720.3,2719.2,0.8241]
[1739817086099,3.67711,2719.6,2719.0,3.67778]
[1739817086301,3.67711,2719.6,2719.0,4.495769]
[1739817086535,3.67683,2719.8,2719.2,3.67746]
[1739817086834,0.7716,2719.6,2718.9,0.8241]
[1739817087157,4.42677854,2720.2,2718.9,0.8241]
[1739817087158,3.67657,2720.0,2719.4,3.67726]
[1739817087320,3.67636,2720.1,2719.4,3.67726]
[1739817087637,3.67519,2721.0,2719.4,3.67726]
[1739817087638,0.73941781,2720.5,2719.6,0.8241]
[1739817087836,3.67637,2720.1,2719.6,0.8241]
[1739817088040,3.67612,2720.3,2719.6,4.50098]
[1739817088248,3.67634,2720.1,2719.6,4.50098]
[1739817088543,7.80444539,2720.8,2719.6,0.8241]
[1739817088544,4.80444539,2720.8,2719.6,0.8241]
[1739817088757,3.6761,2720.3,2719.8,3.67661]
[1739817088925,3.67596,2720.4,2719.8,3.67661]
[1739817089133,7.35198,2720.4,2719.8,3.67661]
[1739817089453,3.67662,2719.9,2719.6,0.8241]
[1739817089666,3.67662,2719.9,2719.4,3.67725]
[1739817089812,3.6765,2720.0,2719.4,4.494432]
[1739817090014,3.67644,2720.1,2719.4,4.494372]
[1739817090207,4.80444539,2720.6,2719.5,3.67714]
[1739817090208,0.7795,2720.6,2719.5,3.67714]
[1739817090413,0.7795,2720.6,2719.6,3.67687]
[1739817090730,3.67627,2720.2,2719.7,3.67684]
[1739817090932,3.67627,2720.2,2719.7,4.412238]
[1739817091251,3.67627,2720.2,2719.7,3.67684]
[1739817091450,0.7795,2720.6,2719.5,0.03676639]
[1739817091621,3.6758,2720.5,2719.9,3.67648]
[1739817091822,3.67642,2720.1,2719.5,4.47104]
[1739817092132,3.67627,2720.2,2719.7,3.67687]
[1739817092512,3.67606,2720.3,2719.5,4.47104]
[1739817092713,3.67606,2720.3,2719.5,1.3228222]
[1739817093045,3.67587,2720.5,2719.9,7.35296]
[1739817093250,3.67587,2720.5,2720.0,3.67643]
[1739817093460,3.67587,2720.5,2720.0,0.04601058]
[1739817093461,3.67633,2720.1,2720.0,0.04601058]
[1739817093772,3.67633,2720.1,2719.6,3.67697]
[1739817093912,3.67633,2720.1,2720.0,0.04247131]
[1739817094114,3.6761,2720.3,2719.5,0.794]
[1739817094344,3.67622,2720.2,2719.6,0.04298317]
[1739817094512,3.67622,2720.2,2719.7,3.67683]
[1739817094845,3.6761,2720.3,2719.8,0.04272722]
[1739817095022,3.6766,2719.9,2719.8,0.04272722]
[1739817095230,3.67647,2720.0,2719.5,0.794]
[1739817095431,3.67647,2720.0,2719.8,0.04270863]
[1739817095647,0.8253,2720.3,2719.6,3.67692]
[1739817095823,3.67641,2720.1,2719.6,3.67692]
[1739817096049,3.67641,2720.1,2719.7,0.0428366]
[1739817096424,3.67672,2719.9,2719.7,0.0428366]
[1739817096631,3.67672,2719.9,2719.5,0.794]
[1739817096861,3.67675,2719.8,2719.5,0.794]
[1739817097062,3.67675,2719.8,2719.6,0.04293273]
[1739817097063,4.50217,2719.7,2719.6,0.04293273]
[1739817097365,3.67702,2719.6,2719.0,3.67775]
[1739817097663,7.50185,2720.0,2719.2,3.67742]
[1739817097848,3.6769,2719.7,2719.1,3.67762]
[1739817098048,3.67728,2719.4,2718.9,4.47848]
[1739817098354,3.67715,2719.5,2719.0,3.6778]
[1739817098539,7.35418,2719.6,2719.1,3.67763]
[1739817098740,3.67708,2719.6,2719.0,3.67778]
[1739817098928,3.67714,2719.5,2719.0,3.67778]
[1739817099128,3.67714,2719.5,2718.5,8.77891539]
[1739817099129,3.67742,2719.3,2718.5,3.6784]
[1739817099352,3.72362172,2719.2,2718.7,3.67822]
[1739817099662,3.72362172,2719.2,2718.6,0.8006]
[1739817099663,3.67769,2719.1,2718.6,4.47893]
[1739817100029,3.67749,2719.3,2718.7,3.67811]
[1739817100224,3.67749,2719.3,2718.8,3.67808]
[1739817100425,3.67691,2719.7,2718.7,0.8006]
[1739817100631,3.67661,2719.9,2719.4,0.8006]
[1739817100826,3.67661,2719.9,2719.4,4.47788]
[1739817101031,3.67721,2719.5,2718.6,0.8006]
[1739817101254,3.67721,2719.5,2719.0,3.6778]
[1739817101429,3.67741,2719.3,2718.6,0.8006]
[1739817101633,3.67793,2719.0,2718.6,0.8006]
[1739817101825,0.8077,2719.4,2718.6,0.8006]
[1739817102027,3.67784,2719.0,2718.6,0.8006]
[1739817102228,0.8058,2720.0,2718.7,0.03678323]
[1739817102455,3.67717,2719.5,2718.9,7.35567]
[1739817102671,3.67687,2719.7,2719.1,3.67767]
[1739817102832,3.67674,2719.8,2718.7,3.67813]
[1739817103072,3.67755,2719.2,2718.6,4.47895]
[1739817103410,3.67792,2719.0,2718.6,0.8006]
[1739817104313,0.8058,2719.3,2718.3,0.816]
[1739817104314,0.04597938,2718.9,2718.3,0.816]
[1739817104474,3.67819,2718.8,2718.3,4.49465]
[1739817104670,3.67819,2718.8,2718.3,0.816]
[1739817104874,6.67758,2719.2,2718.0,4.49507]
[1739817104875,3.67852,2718.5,2718.0,4.49507]
[1739817105075,3.67857,2718.5,2718.0,4.49507]
[1739817106187,3.67857,2718.5,2718.0,8.17416]
[1739817106394,7.35719,2718.5,2718.0,4.49507]
[1739817106592,3.67857,2718.5,2718.0,0.816]
[1739817106840,3.0,2719.1,2718.0,0.816]
[1739817107129,0.8047,2719.7,2718.5,0.816]
[1739817107421,3.67706,2719.6,2719.1,3.67759]
[1739817107631,0.8047,2719.7,2719.1,0.816]
[1739817107841,3.67667,2719.9,2719.1,0.816]
[1739817107842,3.67666,2719.9,2719.4,3.67721]
[1739817107987,3.67643,2720.1,2719.1,0.816]
[1739817108337,3.67655,2720.0,2719.5,3.67713]
[1739817108635,3.67658,2720.0,2719.3,3.67734]
[1739817108836,3.67625,2720.2,2719.6,3.72867284]
[1739817109001,3.67569,2720.6,2719.8,3.67663]
[1739817109207,3.67582,2720.5,2719.9,3.67649]
[1739817109404,0.7818,2720.8,2719.9,0.05113844]
[1739817109718,3.67584,2720.5,2719.9,3.6765]
[1739817110024,3.67584,2720.5,2720.0,0.0509721]
[1739817110203,3.67573,2720.6,2720.0,0.0509721]
[1739817110404,3.67601,2720.4,2720.0,0.0509721]
[1739817110601,3.67618,2720.3,2720.0,0.0509721]
[1739817110824,3.67628,2720.2,2719.7,0.7757]
[1739817111004,3.67628,2720.2,2720.1,0.04618707]
[1739817111196,3.67618,2720.3,2719.7,4.45255]
[1739817111389,3.6762,2720.2,2720.1,0.05060302]
[1739817111608,3.6762,2720.2,2719.7,4.45255]
[1739817111809,3.6762,2720.2,2720.1,0.04600274]
[1739817112139,3.67629,2720.2,2720.1,0.05060302]
[1739817112299,0.367573,2720.5,2719.7,0.7757]
[1739817112501,3.67625,2720.2,2720.1,0.04600274]
[1739817112831,3.67625,2720.2,2719.7,0.7757]
[1739817113002,3.67625,2720.2,2720.1,0.05060302]
[1739817113210,3.67625,2720.2,2719.7,0.7757]
[1739817113411,3.67625,2720.2,2720.1,0.05060302]
[1739817113612,3.67606,2720.3,2719.7,0.7757]
[1739817113808,3.67606,2720.3,2720.1,0.05060302]
[1739817114033,3.0,2720.4,2719.7,1.22098]
[1739817114332,3.0,2720.4,2719.9,3.67651]
[1739817114698,3.0,2720.5,2720.0,0.05076934]
[1739817114893,0.7818,2720.8,2720.0,0.05076934]
[1739817114894,3.67546,2720.8,2720.3,3.67603]
[1739817115097,3.67546,2720.8,2720.3,4.45273]
[1739817115298,3.77528,2720.9,2720.4,3.73158124]
[1739817115493,0.1,2720.9,2720.4,4.55001236]
[1739817115733,0.1,2720.9,2720.4,8.22586236]
[1739817115912,0.1,2720.9,2720.5,3.67577]
[1739817116234,0.1,2720.9,2720.5,3.72570784]
[1739817116927,0.1,2720.9,2720.7,3.67545]
[1739817117136,0.1,2720.9,2720.6,0.04942792]
[1739817117337,0.1,2720.9,2720.8,4.45208]
[1739817117931,0.1,2720.9,2720.8,4.50117543]
[1739817119093,0.1,2720.9,2720.8,7.53791965]
[1739817119295,0.1,2720.9,2720.8,7.50117543]
[1739817120055,1e-05,2720.9,2720.8,8.05117543]
[1739817120254,1e-05,2720.9,2720.8,9.7791257]
[1739817120553,4.22317,2722.5,2721.9,0.8317]
[1739817120758,3.67323,2722.4,2721.9,0.8317]
[1739817120960,3.67352,2722.2,2721.9,0.8317]
[1739817121100,0.55,2722.5,2721.8,3.6739]
[1739817121301,3.6733,2722.4,2721.8,4.04129]
[1739817121658,3.6733,2722.4,2721.9,3.67382]
[1739817121800,3.55,2722.5,2722.0,3.67374]
[1739817122000,7.22315,2722.5,2722.0,3.67374]
[1739817122199,7.22315,2722.5,2721.9,3.67388]
[1739817122403,7.22315,2722.5,2721.5,0.8317]
[1739817122404,3.67373,2722.1,2721.5,4.50613]
[1739817122734,6.67349,2722.2,2721.6,3.67423]
[1739817122895,3.0,2722.2,2721.7,0.03674029]
[1739817123100,3.67323,2722.4,2721.7,3.67404]
[1739817123303,3.67323,2722.4,2721.9,3.67389]
[1739817123499,7.34655,2722.4,2721.9,3.67389]
[1739817123725,3.67323,2722.4,2721.9,3.67389]
[1739817123926,7.22309,2722.5,2721.9,3.67389]
[1739817124227,7.22311,2722.5,2722.0,0.7996]
[1739817124439,0.55,2722.5,2722.2,3.6734]
[1739817124902,0.55,2722.5,2722.3,3.67334]
[1739817125306,0.55,2722.5,2722.1,4.120899]
[1739817125613,0.55,2722.5,2722.1,0.447349]
[1739817125828,0.55,2722.5,2722.0,0.7996]
[1739817126032,4.22309,2722.5,2722.0,0.7996]
[1739817126215,7.8963,2722.5,2722.0,0.7996]
[1739817126406,3.67325,2722.4,2722.0,0.7996]
[1739817126738,3.67343,2722.3,2721.7,3.67415]
[1739817126939,4.22315,2722.5,2721.8,5.224667]
[1739817127140,0.55,2722.5,2722.1,3.67352]
[1739817127343,0.55,2722.5,2722.1,3.67357]
[1739817127819,4.22317,2722.5,2721.9,3.67382]
[1739817128019,0.55,2722.5,2721.9,3.67382]
[1739817128233,0.55,2722.5,2722.1,3.67363]
[1739817128538,4.22311,2722.5,2722.0,0.5224457]
[1739817128839,3.67379,2722.0,2721.5,3.67437]
[1739817129140,3.6735,2722.2,2721.4,4.43096]
[1739817129141,3.6735,2722.2,2721.4,0.7565]
[1739817129354,3.6735,2722.2,2721.6,3.67423]
[1739817129640,3.6735,2722.2,2721.7,0.367423]
[1739817129804,3.67339,2722.3,2721.8,3.67402]
[1739817130000,3.67339,2722.3,2721.7,0.367423]
[1739817130001,0.55,2722.5,2721.7,0.367423]
[1739817130215,0.55,2722.5,2721.8,0.79323194]
[1739817130413,0.55,2722.5,2722.1,3.67356]
[1739817131005,4.2231,2722.5,2721.9,3.6739]
[1739817131210,3.67344,2722.3,2721.8,0.7565]
[1739817131721,3.67331,2722.4,2721.9,3.67383]
[1739817131917,3.67327,2722.4,2721.9,4.116933]
[1739817132106,4.22316,2722.5,2721.9,0.443033]
[1739817132305,3.6733,2722.4,2721.9,4.116853]
[1739817132503,0.55,2722.5,2722.1,3.67359]
[1739817132709,0.55,2722.5,2722.2,3.71021131]
[1739817132921,0.55,2722.5,2722.2,0.77510644]
[1739817133158,0.55,2722.5,2722.2,0.73837513]
[1739817133371,4.22315,2722.5,2721.9,4.116853]
[1739817133562,3.6733,2722.4,2721.9,4.116853]
[1739817133767,4.22315,2722.5,2722.0,3.67376]
[1739817134166,7.89632,2722.5,2722.0,3.67376]
[1739817134363,4.22315,2722.5,2722.0,3.67376]
[1739817134880,7.89635,2722.5,2722.0,3.67376]
[1739817135090,4.22315,2722.5,2722.0,8.2021803]
[1739817135376,3.67324,2722.4,2722.0,4.5284203]
[1739817136153,3.67324,2722.4,2722.0,0.8547303]
[1739817136351,3.6735,2722.2,2721.8,0.7565]
[1739817136781,3.67336,2722.3,2721.8,4.43046]
[1739817137183,3.67336,2722.3,2721.8,0.7565]
[1739817137479,3.67382,2722.0,2721.8,0.7565]
[1739817137689,3.67399,2721.9,2721.5,0.8109]
[1739817137849,3.0,2722.3,2721.5,1.259439]
[1739817138047,3.67372,2722.1,2721.5,1.259439]
[1739817138243,3.67399,2721.9,2721.5,0.8109]
[1739817138444,0.7912,2722.5,2721.5,0.8109]
[1739817138782,2.21,2721.8,2720.6,1.53862215]
[1739817138989,3.67532,2720.9,2720.4,3.67589]
[1739817139286,3.67523,2721.0,2720.5,0.51848827]
[1739817139583,3.67535,2720.9,2720.5,0.51848827]
[1739817139783,6.67506,2721.1,2720.5,0.51848827]
[1739817139967,3.0,2721.1,2720.6,0.78701883]
[1739817140169,3.67534,2720.9,2720.7,0.06933424]
[1739817140371,3.67534,2720.9,2720.3,0.8109]
[1739817140372,3.67538,2720.8,2720.3,0.8109]
[1739817140680,3.67556,2720.7,2720.4,0.07004681]
[1739817141078,3.67556,2720.7,2720.1,3.67625]
[1739817141280,3.67556,2720.7,2720.5,0.06980927]
[1739817141480,3.67556,2720.7,2720.2,0.81635]
[1739817141985,0.04594545,2720.8,2720.3,0.07028436]
[1739817142282,3.67593,2720.4,2720.0,0.8109]
[1739817142488,3.67608,2720.3,2719.8,3.67663]
[1739817142848,3.67641,2720.1,2719.7,0.814]
[1739817143285,3.67656,2720.0,2719.4,4.49118]
[1739817143504,3.67634,2720.1,2719.4,4.49118]
[1739817143796,3.67647,2720.0,2719.5,0.449118]
[1739817143967,3.67662,2719.9,2719.5,0.449118]
[1739817144283,3.67687,2719.7,2719.5,0.449118]
[1739817144486,3.67614,2720.3,2719.4,0.814]
[1739817144676,3.67663,2719.9,2719.4,4.49126]
[1739817145092,3.0,2720.0,2719.4,4.49117]
[1739817145465,3.6766,2719.9,2719.4,0.814]
[1739817145656,3.0,2720.3,2719.4,0.814]
[1739817145856,7.35346,2719.9,2719.4,0.814]
[1739817146056,7.35342,2719.9,2719.4,0.814]
[1739817146458,3.67678,2719.8,2719.4,0.814]
[1739817146691,3.67669,2719.9,2719.4,0.814]
[1739817146692,7.35339,2719.9,2719.4,0.814]
[1739817146862,7.3534,2719.9,2719.4,0.814]
[1739817147078,3.67676,2719.8,2719.4,0.814]
[1739817147790,3.67663,2719.9,2719.4,0.814]
[1739817147996,3.67663,2719.9,2719.4,4.49123]
[1739817148558,3.67663,2719.9,2719.4,8.16841]
[1739817148872,3.0,2720.1,2719.4,4.49118]
[1739817149070,3.0,2720.1,2719.5,3.67706]
[1739817149272,3.67649,2720.0,2719.5,3.67706]
[1739817149675,0.7582,2720.4,2719.5,3.67706]
[1739817149676,0.7582,2720.4,2719.7,3.67687]
[1739817149860,3.67567,2720.6,2720.1,3.6763]
[1739817150060,0.8264,2720.7,2719.7,3.67687]
[1739817150407,3.67606,2720.3,2719.8,3.67673]
[1739817151023,3.67606,2720.3,2719.4,0.814]
[1739817151024,3.67669,2719.9,2719.4,4.49126]
[1739817151200,7.9013,2720.6,2719.4,4.49126]
[1739817151201,3.72280113,2719.8,2719.4,0.814]
[1739817151514,3.67682,2719.8,2719.4,0.8743112]
[1739817151879,3.67682,2719.8,2719.4,0.814]
[1739817152074,3.67701,2719.6,2719.1,4.44898]
[1739817152275,3.67728,2719.4,2719.1,0.7713]
[1739817152480,3.67741,2719.3,2719.2,0.06072725]
[1739817152706,6.7233846,2719.3,2719.2,0.06072725]
[1739817153013,6.7233846,2719.3,2718.4,4.4499]
[1739817153014,3.67792,2719.0,2718.4,4.4499]
[1739817153188,3.67774,2719.1,2718.5,3.73376456]
[1739817153813,3.67774,2719.1,2718.5,0.05527456]
[1739817153981,3.67797,2718.9,2718.5,0.05527456]
[1739817154180,3.67823,2718.7,2718.5,0.05527456]
[1739817154376,0.04597807,2718.6,2718.5,0.05527456]
[1739817154682,0.04597807,2718.6,2718.1,0.7713]
[1739817154683,3.67848,2718.6,2718.1,0.7713]
[1739817154883,3.67848,2718.6,2718.1,1.584267]
[1739817155083,3.67852,2718.5,2718.2,0.05582968]
[1739817155814,3.67851,2718.5,2718.2,0.05582968]
[1739817156180,3.67841,2718.6,2718.2,0.05582968]
[1739817157183,3.7715,2718.8,2718.2,0.05582968]
[1739817157403,3.0,2719.0,2718.4,3.67859]
[1739817157606,3.67798,2718.9,2718.4,3.67859]
[1739817157812,4.44924,2719.1,2718.5,0.05656923]
[1739817158015,5.275141,2719.3,2718.7,3.67817]
[1739817158191,3.67723,2719.5,2718.9,3.67795]
[1739817158527,3.67721,2719.5,2719.0,3.67781]
[1739817158837,4.44846,2719.7,2719.1,3.6776]
[1739817158838,4.44845,2719.7,2719.1,3.6776]
[1739817158979,0.7715,2720.0,2719.2,0.03677458]
[1739817159181,3.67648,2720.0,2719.5,3.67707]
[1739817159383,3.67678,2719.8,2719.3,4.5192385]
[1739817159597,3.67678,2719.8,2719.6,0.06987554]
[1739817159802,3.67678,2719.8,2719.3,4.90056385]
[1739817159987,3.67678,2719.8,2719.7,0.06963786]
[1739817160196,3.67678,2719.8,2719.3,8.57790385]
[1739817160506,3.67678,2719.8,2719.3,4.90056385]
[1739817160717,3.67687,2719.7,2719.3,1.22322385]
[1739817161016,3.67687,2719.7,2718.6,6.67831]
[1739817161017,3.67714,2719.5,2719.4,0.06155708]
[1739817161198,3.0,2719.7,2719.2,3.67747]
[1739817161397,3.0,2719.7,2719.4,0.07010541]
[1739817161597,3.67722,2719.5,2719.0,0.7515]
[1739817161804,7.35416,2719.6,2719.5,0.06986769]
[1739817161987,3.67738,2719.4,2719.0,0.7515]
[1739817162320,3.67738,2719.4,2718.8,3.67801]
[1739817162519,7.35474,2719.4,2718.8,3.67801]
[1739817162723,3.67736,2719.4,2718.8,3.67801]
[1739817162882,0.04596826,2719.6,2718.8,3.67801]
[1739817162883,3.67714,2719.5,2718.8,3.678]
[1739817163222,3.67735,2719.4,2718.8,3.678]
[1739817163416,3.67714,2719.5,2718.9,3.67794]
[1739817163726,3.67744,2719.3,2718.8,3.678]
[1739817163918,0.735458,2719.3,2718.4,4.50438]
[1739817164122,0.7516,2719.2,2718.4,0.8258]
[1739817164309,3.67805,2718.9,2718.4,0.8258]
[1739817164841,3.67833,2718.7,2718.2,3.67881]
[1739817165190,3.0,2718.8,2718.2,3.67881]
[1739817165391,3.0,2718.8,2718.3,3.67869]
[1739817165787,3.0,2718.9,2718.4,3.67854]
[1739817166022,6.67797,2718.9,2718.4,3.67854]
[1739817166621,3.67768,2719.1,2718.3,3.67869]
[1739817166823,3.6782,2718.8,2718.1,4.129435]
[1739817167028,3.67843,2718.6,2718.0,0.8258]
[1739817167229,3.67843,2718.6,2718.0,4.50489]
[1739817167431,3.67836,2718.6,2718.0,4.50489]
[1739817167591,3.67865,2718.4,2718.0,0.8258]
[1739817167786,3.72440378,2718.6,2718.0,0.8258]
[1739817167990,3.67842,2718.6,2718.1,3.67903]
[1739817168288,3.67842,2718.6,2718.0,4.50496]
[1739817168484,3.67842,2718.6,2718.2,0.06383941]
[1739817168685,3.67861,2718.5,2718.1,0.06404761]
[1739817168928,3.67861,2718.5,2718.3,0.06363123]
[1739817169122,3.67842,2718.6,2718.2,0.06383941]
[1739817169429,3.67842,2718.6,2718.3,0.06363123]
[1739817169623,3.67842,2718.6,2718.1,3.67892]
[1739817169930,3.67842,2718.6,2718.4,0.06342306]
[1739817170227,3.0,2719.0,2718.0,0.8258]
[1739817170228,3.67852,2718.5,2718.0,0.8258]
[1739817170399,3.67872,2718.4,2718.0,0.8258]
[1739817170594,3.72450415,2718.5,2717.8,3.67935]
[1739817170787,3.72450415,2718.5,2717.7,0.8112]
[1739817170788,3.67898,2718.2,2717.7,0.8112]
[1739817171026,3.67904,2718.1,2717.7,0.8112]
[1739817171221,3.67904,2718.1,2717.7,4.49076]
[1739817171440,3.6789,2718.2,2717.7,4.49073]
[1739817171728,3.6789,2718.2,2717.7,0.8112]
[1739817172224,3.67918,2718.0,2717.5,3.67977]
[1739817172431,3.67918,2718.0,2717.5,4.491105]
[1739817172729,0.04599106,2717.9,2717.4,0.7537]
[1739817172931,0.04599106,2717.9,2717.3,3.6801]
[1739817172932,3.67973,2717.6,2717.2,3.68016]
[1739817173626,0.8259,2717.9,2717.1,0.7537]
[1739817173627,0.87189855,2717.9,2717.1,0.7537]
[1739817173832,3.68006,2717.4,2716.9,3.68065]
[1739817174128,3.68006,2717.4,2716.9,4.492176]
[1739817174325,0.04600074,2717.3,2716.9,0.811526]
[1739817174526,3.72619074,2717.3,2716.8,4.43442]
[1739817174828,0.04600367,2717.7,2716.8,0.7537]
[1739817175030,3.68047,2717.1,2716.5,4.43483]
[1739817175533,3.68079,2716.9,2716.3,3.68141]
[1739817175694,3.68079,2716.9,2716.3,7.82112034]
[1739817176032,0.04600995,2717.0,2716.4,3.68125]
[1739817176215,3.68074,2716.9,2716.3,4.13971034]
[1739817176416,3.68074,2716.9,2716.3,4.13970034]
[1739817176618,3.68045,2717.1,2716.5,3.68113]
[1739817176918,3.68007,2717.4,2716.8,3.6807]
[1739817177117,3.55,2717.7,2716.4,0.7537]
[1739817177427,0.8259,2717.1,2716.4,0.7537]
[1739817177626,3.0,2716.9,2716.1,0.1480934]
[1739817177793,3.68157,2716.3,2716.1,0.1480934]
[1739817177996,3.727631,2716.2,2716.1,0.1480934]
[1739817178195,4.4685511,2716.2,2716.1,0.1480934]
[1739817178390,7.4685511,2716.2,2716.1,0.1480934]
[1739817178618,7.4225301,2716.2,2716.1,0.1480934]
[1739817179662,8.7984301,2716.2,2716.1,0.1480934]
[1739817179859,3.55,2716.1,2714.6,3.6837]
[1739817179996,3.55,2716.1,2715.0,3.68323]
[1739817179997,3.68236,2715.7,2715.0,3.68323]
[1739817180201,0.8259,2716.1,2715.2,3.68296]
[1739817180414,0.8259,2716.1,2715.7,3.68224]
[1739817180660,0.8259,2716.1,2715.1,0.7537]
[1739817180963,3.68229,2715.7,2714.9,3.68335]
[1739817181136,3.6826,2715.5,2714.9,3.68335]
[1739817181439,3.6826,2715.5,2714.4,0.7537]
[1739817181440,3.68315,2715.1,2714.4,0.7537]
[1739817181744,0.04604128,2715.0,2714.6,3.68375]
[1739817181906,6.68303,2715.2,2714.5,3.6839]
[1739817182241,0.8259,2715.0,2713.9,0.55]
[1739817182549,0.8259,2715.0,2710.8,13.2564551]
[1739817182550,0.8259,2713.2,2711.4,1.48477164]
[1739817182699,0.55,2713.1,2711.4,1.48477164]
[1739817182899,0.8259,2713.2,2712.0,1.10709]
[1739817182900,0.04608528,2713.0,2712.0,1.10709]
[1739817183098,0.8259,2713.2,2712.0,3.68727]
[1739817183298,3.68613,2712.9,2712.2,0.06342131]
[1739817183514,0.451145,2713.1,2712.2,0.06342131]
[1739817183713,0.04607839,2713.1,2712.2,0.06342131]
[1739817184066,4.80444539,2714.3,2712.2,0.06342131]
[1739817184067,3.0,2713.9,2713.3,3.68553]
[1739817184207,4.51051,2714.0,2712.8,0.7537]
[1739817184514,0.8259,2714.0,2712.9,4.85951907]
[1739817184873,3.68404,2714.5,2713.3,3.68545]
[1739817185008,3.68396,2714.5,2713.0,0.56132191]
[1739817185203,3.68396,2714.5,2713.5,3.68527]
[1739817185403,3.68396,2714.5,2713.0,0.56132191]
[1739817185404,0.7621,2714.7,2713.6,0.06049524]
[1739817185711,2.52409985,2714.9,2714.2,3.6842]
[1739817185935,4.01204999,2714.9,2714.0,3.68457]
[1739817186246,4.01204999,2714.9,2713.3,0.322]
[1739817186247,3.68459,2714.1,2713.3,0.8048]
[1739817186551,6.68539,2713.5,2713.4,0.05414495]
[1739817186747,7.7685178,2713.5,2713.4,0.05414495]
[1739817186911,4.037049,2713.5,2712.4,4.49153]
[1739817187245,1.037049,2713.5,2712.5,0.05023523]
[1739817187548,4.50374,2713.9,2712.5,0.05023523]
[1739817187710,0.819,2713.9,2712.5,0.05023523]
[1739817187910,3.68432,2714.2,2713.2,3.68554]
[1739817188265,3.68432,2714.2,2713.3,3.73976067]
[1739817188427,0.819,2714.3,2713.3,0.05433067]
[1739817188607,0.59606406,2714.2,2712.4,0.8048]
[1739817188944,3.68545,2713.4,2712.6,3.68637]
[1739817189247,0.368545,2713.3,2712.7,0.05060442]
[1739817189464,0.368545,2713.3,2712.7,3.68623]
[1739817189608,4.10019267,2713.3,2712.5,3.68661]
[1739817189808,4.054115,2713.3,2712.6,0.05078533]
[1739817190042,0.368545,2713.3,2712.2,3.68702]
[1739817190368,0.368545,2713.3,2712.3,0.05128711]
[1739817190573,0.8109,2714.6,2712.4,0.8036]
[1739817190746,0.8109,2714.6,2713.4,3.68539]
[1739817190955,3.68444,2714.2,2713.4,3.68539]
[1739817191257,0.368444,2714.1,2713.5,3.73450066]
[1739817191422,0.8109,2714.6,2713.5,0.04928066]
[1739817191622,4.49468,2714.6,2713.3,3.68554]
[1739817191862,3.68405,2714.4,2713.6,3.6851]
[1739817192065,3.68405,2714.4,2713.7,3.68498]
[1739817192267,4.49468,2714.6,2713.8,3.68476]
[1739817192436,3.6846,2714.0,2713.7,0.04894643]
[1739817192634,3.6846,2714.0,2712.8,0.8036]
[1739817192635,3.68433,2714.2,2713.4,3.68539]
[1739817192844,0.449468,2714.5,2713.5,0.04928066]
[1739817193047,0.8109,2714.6,2714.0,3.68449]
[1739817193314,0.8109,2714.6,2714.5,3.68391]
[1739817193630,0.797,2715.0,2713.8,3.68486]
[1739817193827,3.68271,2715.4,2714.5,3.68382]
[1739817193828,3.68297,2715.2,2714.5,3.68382]
[1739817193989,4.47971,2715.4,2714.3,3.68418]
[1739817193990,3.68341,2714.9,2714.3,3.68418]
[1739817194191,3.68387,2714.6,2713.6,0.7502]
[1739817194639,3.68366,2714.7,2713.8,3.68482]
[1739817194784,3.68393,2714.5,2713.6,4.43532]
[1739817194979,3.68427,2714.3,2713.6,4.43532]
[1739817195180,3.68393,2714.5,2713.7,3.68488]
[1739817195445,0.448093,2714.4,2713.7,3.68488]
[1739817195738,4.132253,2714.4,2713.7,3.68488]
[1739817196037,4.132253,2714.4,2713.1,0.325]
[1739817196038,3.68433,2714.2,2712.8,0.8162]
[1739817196181,3.0,2714.3,2713.7,3.68499]
[1739817196380,3.68443,2714.2,2713.3,3.68548]
[1739817196689,3.68446,2714.1,2713.4,3.68529]
[1739817196900,3.68459,2714.0,2713.4,3.68529]